Cogmind - Beta 10.2 @@@ ROGUE MODE // 2021.07.22 @ 20:23:50 Player: Vincent Result: Destroyed self with Light Deuterium Engine chain reaction Performance ------------- Evolutions (0) 0 Regions Visited (2) 400 Robots Destroyed (23) 115 Value Destroyed (618) 618 Prototype IDs (2) 40 Alien Tech Used (0) 0 Bonus (0) 0 TOTAL SCORE: 1173 Bonus ------- None Cogmind --------- Core Integrity 0/250 Matter 280/300 Energy 78/100 System Corruption 10% Temperature Cool (0) Movement Core (600) Ox11 Location -10/Mines Parts ------- > --- POWER (1) -------- (None) > --- PROPULSION (2) --- (None) > --- UTILITY (2) ------ High-capacity Storage Unit Visual Processing Unit > --- WEAPON (2) ------- EM Pulse Gun > --- INVENTORY (12) --- Improved Ion Engine Improved Heat Sink High-capacity Storage Unit Medium Matter Pod (100) Sensor Drone Bay Peak State ------------ > --- POWER ------------ Improved Ion Engine > --- PROPULSION ------- Improved Treads Improved Treads > --- UTILITY ---------- High-capacity Storage Unit Improved Targeting Computer > --- WEAPON ----------- Heavy Assault Rifle Mining Claw > --- INVENTORY -------- Improved Ion Engine Improved Treads Improved Treads Improved Heat Sink High-capacity Storage Unit Medium Matter Pod Visual Processing Unit Light Armor Plating EM Pulse Gun Heavy Assault Rifle Heavy Assault Rifle Heavy Assault Rifle [Rating: 14] Favorites ----------- Power Improved Ion Engine Engine Improved Ion Engine Propulsion Improved Treads Treads Improved Treads Wheel Compact Wheel Utility Improved Targeting Computer Device Structural Scanner Storage High-capacity Storage Unit Processor Improved Targeting Computer Protection Light Armor Plating Weapon Heavy Assault Rifle Energy Gun EM Pulse Gun Ballistic Gun Heavy Assault Rifle Slashing Weapon Mining Claw Build | -11 -10 -10 ------- Run | Scr Mat Min Slots Evolved . | . . . Power . | . . . Propulsion . | . . . Utility . | . . . Weapon . | . . . Parts Attached 40 | 6 25 9 Power 7 | 1 6 . Engine 7 | 1 6 . Core . | . . . Reactor . | . . . Propulsion 11 | 2 7 2 Treads 9 | . 7 2 Leg . | . . . Wheel 2 | 2 . . Hover . | . . . Flight . | . . . Utility 8 | 1 4 3 Device 1 | . 1 . Storage 3 | 1 2 . Processor 2 | . 1 1 Hackware . | . . . Protection 2 | . . 2 Artifact . | . . . Weapon 14 | 2 8 4 Energy Gun 7 | 1 5 1 Energy Cannon . | . . . Ballistic Gun 5 | 1 1 3 Ballistic Cannon . | . . . Launcher . | . . . Special Weapon . | . . . Impact Weapon . | . . . Slashing Weapon 2 | . 2 . Piercing Weapon . | . . . Special Melee Weapon . | . . . Unidentified Prototypes . | . . . Parts Lost 11 | . . 11 Power 1 | . . 1 Propulsion 4 | . . 4 Utility 2 | . . 2 Weapon 4 | . . 4 Highest Loss Streak 5 | . . 5 Average Slot Usage (%) 97 | . 97 95 Engine 13 | . 13 14 Treads 25 | . 25 27 Wheel 1 | . 1 . Storage 14 | . 14 14 Processor 12 | . 13 9 Energy Gun 10 | . 12 1 Ballistic Gun 9 | . 8 16 Slashing Weapon 7 | . 7 8 Naked Turns . | . . . Heaviest Build 48 | 12 44 48 Greatest Support 46 | 26 46 46 Greatest Overweight (x) 13 | 1 13 1 Average Overweight (x) . | . . . Largest Inventory Capacity 12 | 6 12 12 Average Capacity 11 | 5 10 12 Most Carried 12 | 6 12 12 Average Carried 9 | 4 10 10 Final Capacity 12 | 6 12 12 Final Carried 12 | 6 12 5 Class Distribution -------------------- 100% | Mutant Dominant Class ---------------- Mutant | -10/Materials Mutant | -10/Mines Resources | -11 -10 -10 ----------- Run | Scr Mat Min Matter Collected 1001 | 222 529 250 Remotely . | . . . Salvage Created 979 | . 694 285 Parts 49 | . 45 4 Haulers Intercepted 1 | . 1 . Recyclers Shooed 1 | . 1 . Parts Field Recycled . | . . . Retrieved Matter . | . . . Parts Self-Destructed . | . . . Prevented . | . . . Kills | -11 -10 -10 ------- Run | Scr Mat Min Combat Hostiles Destroyed 28 | . 14 14 Guns 27 | . 13 14 AOE 1 | . 1 . Classes Destroyed 8 | . 7 1 Builder 1 | . 1 . Hauler 1 | . 1 . Recycler 1 | . 1 . Operator 1 | . 1 . Watcher 3 | . 3 . Swarmer 3 | . 3 . Grunt 13 | . 11 2 Assembled 12 | . . 12 Best Kill Streak 10 | . 4 10 Combat Bots Only 10 | . 3 10 Max Kills in Single Turn 1 | . 1 1 Gunslinging . | . . . Exploded 1 | . 1 . Melee . | . . . Uniques/NPCs Destroyed . | . . . Combat | -11 -10 -10 -------- Run | Scr Mat Min Damage Taken 2052 | . 565 1487 Core 254 | . 92 162 Absorbed by Shields . | . . . Core Remaining (%) 100 | 100 . . Volleys Fired 111 | . 61 50 Largest 2 | . 2 2 Hottest 80 | . 80 63 Shots Fired 181 | . 103 78 Gun 181 | . 103 78 Cannon . | . . . Launcher . | . . . Special . | . . . Kinetic 110 | . 40 70 Thermal 21 | . 21 . Explosive . | . . . Electromagnetic 50 | . 42 8 Robot Hit Streak 11 | . 11 9 Robot Miss Streak 3 | . 2 3 Penetration Max . | . . . Secondary Targets . | . . . Shots Hit Robots 123 | . 71 52 Core Hits 56 | . 30 26 Critical Hits 1 | . . 1 Critical Kills . | . . . Critical Parts Destroyed 1 | . . 1 Melee Attacks 7 | . 7 . Impact . | . . . Slashing 7 | . 7 . Piercing . | . . . Sneak Attacks 1 | . 1 . Combat Hostiles . | . . . Follow-up Attacks . | . . . Damage Inflicted 1744 | . 1017 727 Guns 1522 | . 831 691 Cannons . | . . . Explosions 127 | . 91 36 Melee 95 | . 95 . Ramming . | . . . Kinetic 1000 | . 351 649 Thermal 270 | . 234 36 Explosive . | . . . Electromagnetic 379 | . 337 42 Impact . | . . . Slashing 95 | . 95 . Piercing . | . . . Highest Corruption 10 | . 3 10 Average Corruption 3 | . 2 5 Corruption Purged . | . . . Effects 44 | . 19 25 Message Errors 6 | . 6 . Matter Fused 6 | . 3 3 Heat Flow Errors 4 | . 1 3 Energy Discharges 6 | . 4 2 Parts Rejected 1 | . . 1 Data Loss (minor) 4 | . 3 1 Data Loss (major) 1 | . . 1 Misfires 1 | . . 1 Targeting Errors 13 | . 2 11 Weapon Failures 2 | . . 2 Overload Shots . | . . . Overflow Damage . | . . . Projectiles . | . . . Explosions . | . . . Melee . | . . . Knockbacks . | . . . Impact . | . . . Kinetic . | . . . Secondary . | . . . Self-Inflicted Damage 78 | . 30 48 Shots 2 | . 1 1 Rammed . | . . . Targets Rammed . | . . . Kicked . | . . . Crushed . | . . . Highest Temperature 248 | . 248 206 Average Temperature 49 | . 50 48 Received Heat Transfer 560 | . 255 305 Siege Activations . | . . . Robots Corrupted . | . . . Combat Hostiles . | . . . Parts Fried 1 | . 1 . Impact Corruptions . | . . . Robots Melted . | . . . Combat Hostiles . | . . . Parts Melted . | . . . Heat Transferred 475 | . 425 50 Parts Sabotaged . | . . . Parts Stolen . | . . . Parts Stripped . | . . . Power Chain Reactions 4 | . 3 1 Missiles Intercepted . | . . . Alert | -11 -10 -10 ------- Run | Scr Mat Min Peak Influence 289 | . 289 65 Initial . | . . . Average 78 | . 89 42 Maximum Alert Level 1 | . 1 . Low Security (%) 95 | 100 93 100 Level 1 4 | . 6 . Level 2 . | . . . Level 3 . | . . . Level 4 . | . . . Level 5 . | . . . High Security . | . . . Max Security . | . . . Squads Dispatched 6 | . 6 . Investigation 3 | . 3 . Extermination . | . . . Reinforcement 3 | . 3 . Assault . | . . . Garrison . | . . . Intercept . | . . . Construction Impeded . | . . . Haulers Reinforced . | . . . Stealth | -11 -10 -10 --------- Run | Scr Mat Min Distress Signals . | . . . Communications Jammed . | . . . Distress Signals . | . . . Times Spotted 51 | . 28 23 Peak Tracking Total 14 | . 4 14 Tactical Retreats 2 | . . 2 Traps | -11 -10 -10 ------- Run | Scr Mat Min Traps Triggered 10 | . 10 . Indirectly . | . . . Trap Hack Attempts . | . . . Triggered . | . . . Disarmed . | . . . Reprogrammed . | . . . Reused . | . . . Traps Extracted . | . . . Installed . | . . . Triggered . | . . . Machines | -11 -10 -10 ---------- Run | Scr Mat Min Machines Disabled 3 | . 3 . Max in Single Turn 1 | . 1 . Machines Sabotaged . | . . . Garrisons Compromised . | . . . Overloaded Fab Kills . | . . . Fab Network Shutdowns . | . . . Hacking | -11 -10 -10 --------- Run | Scr Mat Min Machines Accessed 6 | . 5 1 Terminals 4 | . 4 . Fabricators . | . . . Repair Stations . | . . . Recycling Units 1 | . 1 . Scanalyzers . | . . . Garrison Access . | . . . Total Hacks 20 | . 19 1 Successful 10 | . 9 1 Failed 10 | . 10 . Catastrophic 3 | . 3 . Database Lockouts . | . . . Manual 3 | . 3 . Terminals 16 | . 16 . Fabricators . | . . . Repair Stations . | . . . Recycling Units 3 | . 3 . Scanalyzers . | . . . Garrison Access . | . . . Terminal Hacks 7 | . 6 1 Record 2 | . 2 . Prototype ID Bank 1 | . 1 . Open Door 1 | . . 1 Hauler Manifests 1 | . 1 . Zone Layout 2 | . 2 . Fabricator Hacks . | . . . Repair Station Hacks . | . . . Recycling Unit Hacks 3 | . 3 . Process 1 | . 1 . Report Inventory 1 | . 1 . Retrieve Matter 1 | . 1 . Scanalyzer . | . . . Garrison Access Hacks . | . . . Unauthorized Hacks . | . . . Terminals . | . . . Fabricators . | . . . Repair Stations . | . . . Recycling Units . | . . . Scanalyzers . | . . . Garrison Access . | . . . Data Cores Recovered . | . . . Used . | . . . Hacking Detections 5 | . 5 . Full Trace Events 2 | . 2 . Feedback Events . | . . . Feedback Blocked . | . . . Robot Schematics Acquired . | . . . Robots Built . | . . . Matter . | . . . Time . | . . . Total Robot Build Rating . | . . . Part Schematics Acquired . | . . . Parts Built . | . . . Matter . | . . . Time . | . . . Total Part Build Rating . | . . . Parts Repaired . | . . . Time . | . . . Parts Recycled . | . . . Recycled Matter 117 | . 117 . Retrieved Matter 147 | . 147 . Retrieved Components . | . . . Parts Scanalyzed . | . . . Part Schematics Acquired . | . . . Parts Damaged . | . . . Bothacking | -11 -10 -10 ------------ Run | Scr Mat Min Used RIF Installer . | . . . Robots Hacked . | . . . Non-combat . | . . . Combat . | . . . Robot Hacks Applied . | . . . Relay Couplers Released . | . . . Robots Rewired . | . . . Allies Hacked . | . . . Hacks Repelled . | . . . Allies | -11 -10 -10 -------- Run | Scr Mat Min Total Allies . | . . . Largest Group . | . . . Highest-Rated Group . | . . . Highest-Rated Ally . | . . . Total Orders . | . . . Ally Attacks . | . . . Total Damage . | . . . Kills . | . . . Allies Corrupted . | . . . Allies Melted . | . . . Intel | -11 -10 -10 ------- Run | Scr Mat Min Robot Analysis Total . | . . . Derelict Logs Recovered . | . . . Drone Launches . | . . . Drone Recoveries . | . . . Exploration | -11 -10 -10 ------------- Run | Scr Mat Min Turns Passed 2616 | 60 2029 527 Spaces Moved 1316 | 43 1033 240 Core 11 | 10 1 . Treads 1186 | . 946 240 Legs . | . . . Wheels 119 | 33 86 . Hover . | . . . Flight . | . . . Fastest Speed 50 | 50 90 160 Average Speed 156 | 83 159 161 Slowest Speed 700 | 100 700 180 Overloaded Moves . | . . . Propulsion Burnouts . | . . . Robots Hopped . | . . . Cave-ins Triggered . | . . . Exploration Rate (%) 45 | 4 94 39 Regions Visited 2 Branch Regions 1 Pre-discovered Areas . | . . . Known Exits Taken . | . . . Unknown Exits Taken 2 | 1 1 . Scrap Searched 1 | . . 1 Spaces Dug 1 | . 1 . Terrain Destroyed 5 | . 5 . Melee 1 | . 1 . Projectile . | . . . AOE 4 | . 4 . Terrain Rammed . | . . . Walls Destroyed . | . . . Machines Disabled . | . . . Actions | -11 -10 -10 --------- Run | Scr Mat Min Total 1680 | 66 1310 304 Wait 126 | 7 119 . Move 1314 | 42 1032 240 Hop . | . . . Pick Up 52 | 11 38 3 Fast Attach 7 | 1 6 . Attach 25 | 5 11 9 Detach . | . . . Swap 8 | . 8 . Drop 30 | . 28 2 Fire 111 | . 61 50 Melee 7 | . 7 . Ram . | . . . Kick . | . . . Crush . | . . . Escape Stasis . | . . . Rewire . | . . . Trap . | . . . Miscellaneous . | . . . Route ------- -11/Scrapyard -10/Materials (discovered 5 exits: [*Mat x3] / *Min x2) -10/Mines History --------- Turn | Location | Event 22 | -11/Scrapyard | Discovered new exit (range 15) 61 | -11/Scrapyard | Entered Materials 304 | -10/Materials | Build established: Mutant 309 | -10/Materials | Discovered new exit (range 6) 762 | -10/Materials | Discovered new exit (range 5) 1096 | -10/Materials | Discovered new exit (range 8) 1171 | -10/Materials | Discovered new exit (range 15) 1589 | -10/Materials | Discovered new exit (range 12) 2090 | -10/Materials | Entered Mines 2349 | -10/Mines | Found the Drone Emporium 2358 | -10/Mines | Found Prototype Device 2403 | -10/Mines | Assembled infested the area 2414 | -10/Mines | Core integrity fell below 50% 2488 | -10/Mines | Lost 5 parts (2n1u2w) 2513 | -10/Mines | System corruption reached 10% 2553 | -10/Mines | Core integrity fell below 20% 2582 | -10/Mines | Destroyed 10 combat bots 2617 | -10/Mines | Destroyed self with Light Deuterium Engine chain reaction Last Messages --------------- 02561_ as-92403 destroyed. 02562_ Acquired 15 matter. 02565_ Acquired 20 matter. 02569_ Acquired 12 matter. 02571_ System corrupted: Heat flow error (+225). 02575_ Acquired 16 matter. 02578_ Acquired 11 matter. 02580_ Acquired 10 matter. 02583_ Acquired 18 matter. 02586_ System corrupted: FCS attempts to trigger Hvy. Assault Rifle. 02586_ System corrupted: Hvy. Assault Rifle misfires. 02609_ R-06 Scavenger collects Seismic Analyzer. 02611_ Imp. Ion Engine destroyed. 02611_ Imp. Treads destroyed. 02612_ System corrupted: Substantial component data lost. 02613_ R-06 Scavenger collects Wheel. 02615_ Hvy. Assault Rifle destroyed. 02617_ Imp. Treads destroyed. 02617_ R-06 Scavenger destroyed. 02617_ Chain reaction triggered in Lgt. Deuterium Engine. Map ----- +----------------------------------------------------+ | ?????????????????????????????????????????????????? | | ?????????????????????????????????????????????????? | | ?????????????????????????????????????????????????? | | ?????????????????????????????????????????????????? | | ?????????????????????????????????????????????????? | | ?????????????????????????????????????????????????? | | ?????????????????????????????????????????????????? | | ?????????????????????????????????????????????????? | | ?????????????????????????????????????????????????? | | ?????????????????????????????????????????????????? | | ?????????????????????????????????????????????????? | | ##########################???????????????????????? | | ! ! #???????????????????????? | | =%! #???????????????????????? | | #######################!|#???????????????????????? | | ??????????????????????#%!#???????????????????????? | | ??????????????????????#* #???????????????????????? | | ??????????????????????# #??????????###??????????? | | ???????????????????####= #??????????# ??????????? | | ??????????????????## %!##?????????# #??????????? | | ??????????????##### | ###???????# #??????????? | | ??????????????# * ##??????# #??????????? | | ??????????????# #### =%! ######## #??????????? | | ??????????????# #??# #??????????? | | ??????????????# #??## ##########??????????? | | ??????????????# ###### @ ######?????????????? | | ??????????????# d #??????? | | ??????????????####### ###########?????????? | | ????????????????????## #???????????????????? | | ???????????????####### ## #### #????????????????? | | ???????????????# |! ######### ##????? | | ???????????????# =%= r | #????? | | ???????######### ###### """ %! #???? | | ??????##""## #??## """ % ###### % #??? | | ??????#" # #### """ ##????????? ????? | | ??????#" [ ## #???????????????? | | ??????#" ## ##???????????????? | | ??????#" #X ### #????????????????? | | ??????##""## #?### ## ! #???????????????? | | ???????##### #???# ###=%= #??????????????? | | ???????????#########??# #?##=| ##????????????? | | ???????????????## ##?# #??#%! ##???????????? | | ??????????????## ### ####!* ??????????? | | ???############ ?????????? | | ???# ######?????????? | | ???# ######## ### # ### #??????????????? | | ??## #####??# ##?## ## #?### ##??????????????? | | ??#%= #??# ##???####? #????####???????????????? | | ??#=* #??# #????????? #???????????????????????? | | ??#% #### #????????? #???????????????????????? | +----------------------------------------------------+ Best States ------------- Heat Dissipation 25 Energy Generation 12 Energy Capacity 265 Matter Stores 300 Matter Capacity 300 Sight Range 18 Terrain Scan Density 10 Armor Coverage 150 Evasion (%) 50 Targeting Accuracy 6 Recoil Reduction 2 Item Schematics ----------------- None Robot Schematics ------------------ None Fabricated ------------ Nothing Alien Tech Used ----------------- None Achievements -------------- None Challenges ------------ None Game ------ Seed TransportImpulsePrototype Manual? 0 Play Time 00:28:23 Cumulative 32.9 hours Start 2021.07.22 @ 19:55:24 End 2021.07.22 @ 20:23:50 Sessions 1 Manual Loads 0 Difficulty Rogue Special Mode None Game No. 30 Rogue 30 Adventurer 0 Explorer 0 Win Type - Total 0 Types 0/0/0/0/0/0/0/0/0 Lore% 24 Gallery% 31 Achievement% 20 Wizard Run 0 Options --------- ASCII 0 Keyboard 0 Movement Mouse Keybinds 0 Fullscreen 1 Font 16/SmallcapsGlow Map View 85x51 Tactical HUD 1 Map Filters NONE Filters NONE Steam 1 RUN: 754600dd-eb7d-4f9f-920c-9563574718d5